[Event "GER-ch Youth U10 2020"]
[Site "Willingen"]
[Date "2020.10.28"]
[Round "2.12"]
[White "Kullmann, Theo"]
[Black "Krstovic, Marko"]
[Result "0-1"]
[ECO "C47"]
[WhiteElo "1632"]
[BlackElo "1443"]
[Annotator "NA RC"]
[PlyCount "73"]
[EventDate "2020.10.27"]
[EventType "swiss"]
[EventRounds "7"]
[EventCountry "GER"]
[SourceTitle "playchess.com"]
[Source "ChessBase"]
[SourceQuality "1"]
[TimeControl "40/4500+30:900+30"]

1. e4 {[%emt 0:00:00]} e5 {[%emt 0:00:00]} 2. Nf3 {[%emt 0:00:00]} Nf6 {[%emt 0:00:00]} 3. Nc3 {[%emt 0:00:34]} Nc6 {[%emt 0:00:00]} 4. Bc4 {[%emt 0:01:06]} Nxe4 {[%emt 0:00:00]} 5. Nxe4 {[%emt 0:00:10]} d5 {[%emt 0:00:00]} 6. Bd3 {[%emt 0:00:17]} dxe4 {[%emt 0:00:04]} 7. Bxe4 {[%emt 0:00:21]} Bc5 {[%emt 0:00:09]} 8. h3 {[%emt 0:02:49]} O-O {[%emt 0:00:03]} 9. O-O {[%emt 0:00:20]} Re8 {[%emt 0:00:13]} 10. Qe2 {[%emt 0:01:22]} Nd4 {[%emt 0:00:44]} 11. Qd3 {[%emt 0:03:29]} Nxf3+ {[%emt 0:00:23]} 12. Qxf3 {[%emt 0:00:39]} c6 {[%emt 0:00:11]} 13. c3 {[%emt 0:08:21]} Be6 {[%emt 0:00:21]} 14. b3 {[%emt 0:01:18]} Bd5 {[%emt 0:00:37]} 15. d3 {[%emt 0:01:16]} Qd7 {[%emt 0:01:56]} 16. c4 {[%emt 0:03:15]} Be6 {[%emt 0:00:06]} 17. g4 {[%emt 0:01:44]} Rad8 {[%emt 0:01:14]} 18. Kh1 {[%emt 0:04:33]} Qe7 {[%emt 0:02:04]} 19. Qg3 {[%emt 0:00:34]} Bd4 {[%emt 0:00:50]} 20. Rb1 {[%emt 0:00:28]} h6 {[%emt 0:03:52]} 21. h4 {[%emt 0:06:57]} f6 {[%emt 0:01:13]} 22. Bb2 {[%emt 0:07:13]} Qd7 {[%emt 0:03:08]} 23. Bxd4 {[%emt 0:02:27]} Qxd4 {[%emt 0:00:31]} 24. f4 {[%emt 0:00:59]} exf4 {[%emt 0:01:31]} 25. Rxf4 {[%emt 0:00:43]} Qe5 {[%emt 0:00:30]} 26. Rbf1 {[%emt 0:01:13]} g5 {[%emt 0:01:15]} 27. hxg5 {[%emt 0:01:12]} hxg5 {[%emt 0:00:13]} 28. R4f3 {[%emt 0:00:15]} Qxg3 {[%emt 0:00:11]} 29. Rxg3 {[%emt 0:00:06]} Kg7 {[%emt 0:00:17]} 30. Kg2 {[%emt 0:01:31]} Rh8 {[%emt 0:00:12]} 31. Rgf3 {[%emt 0:03:19]} Bxg4 {[%emt 0:00:24]} 32. Rxf6 {[%emt 0:00:08]} Bh3+ {[%emt 0:00:06]} 33. Kg1 {[%emt 0:01:42]} Bxf1 {[%emt 0:00:20]} 34. Rg6+ {[%emt 0:00:13]} Kf7 {[%emt 0:00:11]} 35. Kxf1 {[%emt 0:00:14]} Rh5 {[%emt 0:00:28]} 36. Kg2 {[%emt 0:00:28]} Rd4 {[%emt 0:01:19]} 37. Bf5 {[%emt 0:02:03]} 0-1

[Event "GER-ch Youth U10 2020"]
[Site "Willingen"]
[Date "2020.10.28"]
[Round "2.13"]
[White "Nemitz, Alfred"]
[Black "Zhang, Yibo"]
[Result "0-1"]
[ECO "C49"]
[WhiteElo "1287"]
[BlackElo "1299"]
[Annotator "NA RC"]
[PlyCount "140"]
[EventDate "2020.10.27"]
[EventType "swiss"]
[EventRounds "7"]
[EventCountry "GER"]
[SourceTitle "playchess.com"]
[Source "ChessBase"]
[SourceQuality "1"]
[TimeControl "40/4500+30:900+30"]

1. e4 {[%emt 0:00:00]} e5 {[%emt 0:00:00]} 2. Nf3 {[%emt 0:00:00]} Nc6 {[%emt 0:00:00]} 3. Nc3 {[%emt 0:00:00]} Nf6 {[%emt 0:00:00]} 4. Bb5 {[%emt 0:00:02]} Bb4 {[%emt 0:00:02]} 5. O-O {[%emt 0:00:16]} O-O {[%emt 0:00:08]} 6. d3 {[%emt 0:00:14]} d6 {[%emt 0:00:06]} 7. Bg5 {[%emt 0:00:18]} Bxc3 {[%emt 0:00:25]} 8. bxc3 {[%emt 0:00:13]} h6 {[%emt 0:00:35]} 9. Bh4 {[%emt 0:00:14]} Qe7 {[%emt 0:00:31]} 10. h3 {[%emt 0:04:59]} Nd8 {[%emt 0:00:34]} 11. Re1 {[%emt 0:01:23]} Ne6 {[%emt 0:00:43]} 12. d4 {[%emt 0:06:52]} Nf4 {[%emt 0:03:50]} 13. d5 {[%emt 0:06:00]} Ng6 {[%emt 0:03:32]} 14. Bg3 {[%emt 0:05:00]} Bd7 {[%emt 0:02:58]} 15. Bxd7 {[%emt 0:02:52]} Qxd7 {[%emt 0:03:50]} 16. Rb1 {[%emt 0:00:25]} Rab8 {[%emt 0:00:18]} 17. Nh4 {[%emt 0:01:31]} Nxh4 {[%emt 0:00:57]} 18. Bxh4 {[%emt 0:00:07]} Nh7 {[%emt 0:01:06]} 19. Qd3 {[%emt 0:02:55]} Kh8 {[%emt 0:00:44]} 20. c4 {[%emt 0:02:10]} g5 {[%emt 0:03:33]} 21. Bg3 {[%emt 0:00:11]} Nf6 {[%emt 0:00:13]} 22. Qf3 {[%emt 0:01:15]} Kg7 {[%emt 0:00:45]} 23. Qe3 {[%emt 0:02:17]} Nh5 {[%emt 0:02:39]} 24. Qxa7 {[%emt 0:00:54]} b6 {[%emt 0:00:55]} 25. Qa3 {[%emt 0:00:35]} Ra8 {[%emt 0:00:15]} 26. Qb3 {[%emt 0:00:46]} Nf4 {[%emt 0:01:01]} 27. Bxf4 {[%emt 0:04:36]} gxf4 {[%emt 0:00:26]} 28. Ra1 {[%emt 0:01:42]} h5 {[%emt 0:00:41]} 29. Qf3 {[%emt 0:00:16]} Kh6 {[%emt 0:00:04]} 30. Kh2 {[%emt 0:01:41]} Rg8 {[%emt 0:01:00]} 31. Rg1 {[%emt 0:03:15]} Rg7 {[%emt 0:07:24]} 32. g3 {[%emt 0:06:16]} fxg3+ {[%emt 0:01:54]} 33. Rxg3 {[%emt 0:00:20]} Rxg3 {[%emt 0:03:34]} 34. fxg3 {[%emt 0:00:19]} Qe7 {[%emt 0:00:43]} 35. a3 {[%emt 0:01:54]} Ra4 {[%emt 0:00:48]} 36. Qb3 {[%emt 0:01:29]} Qd7 {[%emt 0:00:30]} 37. Rf1 {[%emt 0:00:49]} b5 {[%emt 0:06:47]} 38. Qxb5 {[%emt 0:07:19]} Qxb5 {[%emt 0:00:52]} 39. cxb5 {[%emt 0:00:04]} Rxe4 {[%emt 0:00:21]} 40. Rxf7 {[%emt 0:00:14]} Re2+ {[%emt 0:00:10]} 41. Kg1 {[%emt 0:15:06]} Rxc2 {[%emt 0:15:06]} 42. a4 {[%emt 0:00:51]} Rc3 {[%emt 0:00:43]} 43. Kg2 {[%emt 0:01:36]} Kg6 {[%emt 0:00:30]} 44. Rf3 {[%emt 0:00:33]} Rc5 {[%emt 0:00:36]} 45. Rd3 {[%emt 0:00:48]} Kf5 {[%emt 0:00:30]} 46. Kf2 {[%emt 0:05:18]} Ke4 {[%emt 0:00:29]} 47. Rd2 {[%emt 0:01:46]} Rc4 {[%emt 0:01:46]} 48. Ra2 {[%emt 0:04:47]} Rb4 {[%emt 0:00:51]} 49. Rc2 {[%emt 0:03:11]} Rxa4 {[%emt 0:00:52]} 50. Rxc7 {[%emt 0:00:08]} Ra2+ {[%emt 0:00:36]} 51. Ke1 {[%emt 0:01:35]} Rb2 {[%emt 0:03:02]} 52. Rh7 {[%emt 0:00:58]} Rxb5 {[%emt 0:02:31]} 53. Rxh5 {[%emt 0:00:14]} Rxd5 {[%emt 0:00:41]} 54. g4 {[%emt 0:01:00]} Rd3 {[%emt 0:01:51]} 55. Ke2 {[%emt 0:01:10]} Rg3 {[%emt 0:01:15]} 56. Kf2 {[%emt 0:00:40]} Rc3 {[%emt 0:02:45]} 57. h4 {[%emt 0:00:51]} Kf4 {[%emt 0:01:23]} 58. g5 {[%emt 0:01:04]} e4 {[%emt 0:03:56]} 59. Rh8 {[%emt 0:05:08]} e3+ {[%emt 0:00:17]} 60. Ke2 {[%emt 0:00:00]} Rc2+ {[%emt 0:00:00]} 61. Kd1 {[%emt 0:00:00]} Rc3 {[%emt 0:00:00]} 62. g6 {[%emt 0:00:00]} Rd3+ {[%emt 0:00:00]} 63. Ke2 {[%emt 0:00:00]} Rd2+ {[%emt 0:00:00]} 64. Ke1 {[%emt 0:00:00]} Rg2 {[%emt 0:00:00]} 65. h5 {[%emt 0:00:00]} Ke4 {[%emt 0:00:00]} 66. h6 Rxg6 {[%emt 0:00:00]} 67. Re8+ {[%emt 0:00:00]} Kd3 {[%emt 0:00:00]} 68. Kf1 {[%emt 0:00:00]} Rxh6 {[%emt 0:00:00]} 69. Ra8 {[%emt 0:00:08]} e2+ {[%emt 0:00:00]} 70. Kf2 {[%emt 0:00:26]} Rf6+ {[%emt 0:00:00]} 0-1

[Event "GER-ch Youth U10 2020"]
[Site "Willingen"]
[Date "2020.10.28"]
[Round "2.14"]
[White "Barthel, Jacob"]
[Black "Schuricht, Emil Frederick"]
[Result "1-0"]
[ECO "A48"]
[WhiteElo "1231"]
[BlackElo "1451"]
[Annotator "NA RC"]
[PlyCount "87"]
[EventDate "2020.10.27"]
[EventType "swiss"]
[EventRounds "7"]
[EventCountry "GER"]
[SourceTitle "playchess.com"]
[Source "ChessBase"]
[SourceQuality "1"]
[TimeControl "40/4500+30:900+30"]

1. d4 {[%emt 0:00:00]} Nf6 {[%emt 0:00:00]} 2. Nf3 {[%emt 0:00:00]} g6 {[%emt 0:00:00]} 3. Bf4 {[%emt 0:00:10]} Bg7 {[%emt 0:00:00]} 4. e3 {[%emt 0:00:34]} O-O {[%emt 0:00:00]} 5. Bd3 {[%emt 0:00:41]} d6 {[%emt 0:00:05]} 6. Nbd2 {[%emt 0:00:38]} Nbd7 {[%emt 0:01:17]} 7. c3 {[%emt 0:00:21]} Re8 {[%emt 0:02:19]} 8. O-O {[%emt 0:03:04]} e5 {[%emt 0:00:49]} 9. dxe5 {[%emt 0:00:16]} dxe5 {[%emt 0:00:07]} 10. Bg5 {[%emt 0:00:58]} h6 {[%emt 0:02:12]} 11. Bxf6 {[%emt 0:01:08]} Nxf6 {[%emt 0:00:20]} 12. Bc4 {[%emt 0:02:51]} e4 {[%emt 0:03:21]} 13. Nd4 {[%emt 0:04:20]} c5 {[%emt 0:01:12]} 14. Ne2 {[%emt 0:00:52]} Be6 {[%emt 0:02:23]} 15. Qc2 {[%emt 0:09:34]} Bxc4 {[%emt 0:18:05]} 16. Nxc4 {[%emt 0:00:12]} Qd5 {[%emt 0:00:16]} 17. Nd2 {[%emt 0:07:06]} Qd3 {[%emt 0:05:18]} 18. Qd1 {[%emt 0:07:41]} Rad8 {[%emt 0:04:39]} 19. Nb3 {[%emt 0:01:49]} b6 {[%emt 0:00:49]} 20. Ng3 {[%emt 0:05:15]} Ng4 {[%emt 0:04:37]} 21. Qxg4 {[%emt 0:00:31]} a5 {[%emt 0:02:40]} 22. Rad1 {[%emt 0:06:54]} Qb5 {[%emt 0:02:06]} 23. Rxd8 {[%emt 0:00:41]} Rxd8 {[%emt 0:00:01]} 24. Qe2 {[%emt 0:01:04]} Qa4 {[%emt 0:00:22]} 25. Nc1 {[%emt 0:00:38]} f5 {[%emt 0:00:42]} 26. b3 {[%emt 0:00:45]} Qd7 {[%emt 0:00:14]} 27. Qc4+ {[%emt 0:05:58]} Kh7 {[%emt 0:00:13]} 28. b4 {[%emt 0:02:46]} cxb4 {[%emt 0:00:54]} 29. cxb4 {[%emt 0:00:13]} axb4 {[%emt 0:00:13]} 30. Qxb4 {[%emt 0:00:12]} h5 {[%emt 0:00:08]} 31. Qxb6 {[%emt 0:00:41]} h4 {[%emt 0:00:11]} 32. Nge2 {[%emt 0:00:10]} Qd1 {[%emt 0:00:11]} 33. f3 {[%emt 0:00:44]} Qd2 {[%emt 0:00:57]} 34. Nf4 {[%emt 0:01:28]} Rd6 {[%emt 0:00:39]} 35. Qb3 {[%emt 0:01:27]} Bc3 {[%emt 0:00:31]} 36. Nfe2 {[%emt 0:02:34]} exf3 {[%emt 0:03:39]} 37. gxf3 {[%emt 0:01:06]} Bb2 {[%emt 0:02:37]} 38. a4 {[%emt 0:04:51]} h3 {[%emt 0:00:41]} 39. Kf2 {[%emt 0:01:35]} Bxc1 {[%emt 0:00:48]} 40. Rxc1 {[%emt 0:00:11]} Rd3 {[%emt 0:00:07]} 41. Qf7+ {[%emt 0:15:55]} Kh6 {[%emt 0:15:16]} 42. Qf8+ {[%emt 0:00:10]} Kh5 {[%emt 0:01:06]} 43. Qh8+ {[%emt 0:00:10]} Kg5 {[%emt 0:00:20]} 44. Rg1# {[%emt 0:00:07]} 1-0

[Event "GER-ch Youth U10 2020"]
[Site "Willingen"]
[Date "2020.10.28"]
[Round "2.15"]
[White "Noennig, Jakob"]
[Black "Meng, Yuxuan"]
[Result "1-0"]
[ECO "B40"]
[WhiteElo "1442"]
[BlackElo "1515"]
[Annotator "NA RC"]
[PlyCount "79"]
[EventDate "2020.10.27"]
[EventType "swiss"]
[EventRounds "7"]
[EventCountry "GER"]
[SourceTitle "playchess.com"]
[Source "ChessBase"]
[SourceQuality "1"]
[TimeControl "40/4500+30:900+30"]

1. e4 {[%emt 0:00:00]} c5 {[%emt 0:00:00]} 2. Nf3 {[%emt 0:00:00]} e6 {[%emt 0:00:00]} 3. d4 {[%emt 0:00:00]} cxd4 {[%emt 0:00:00]} 4. Nxd4 {[%emt 0:00:00]} Nf6 {[%emt 0:00:00]} 5. Nc3 {[%emt 0:00:02]} Nc6 {[%emt 0:00:00]} 6. Ndb5 {[%emt 0:00:12]} Bc5 {[%emt 0:00:14]} 7. Bg5 {[%emt 0:04:13]} Qb6 {[%emt 0:03:39]} 8. Qd2 {[%emt 0:09:46]} Ng4 {[%emt 0:16:24]} 9. Na4 {[%emt 0:12:10]} Bxf2+ {[%emt 0:20:57]} 10. Kd1 {[%emt 0:02:42]} Be3 {[%emt 0:07:11]} 11. Nxb6 {[%emt 0:07:20]} Bxd2 {[%emt 0:00:11]} 12. Kxd2 {[%emt 0:01:10]} axb6 {[%emt 0:00:50]} 13. Nc7+ {[%emt 0:00:30]} Kf8 {[%emt 0:00:07]} 14. Nxa8 {[%emt 0:00:16]} Nf2 {[%emt 0:00:14]} 15. Nxb6 {[%emt 0:01:04]} Na7 {[%emt 0:01:16]} 16. Bd3 {[%emt 0:00:50]} Nxh1 {[%emt 0:00:17]} 17. Rxh1 {[%emt 0:00:14]} f6 {[%emt 0:00:10]} 18. Be3 {[%emt 0:00:49]} Ke7 {[%emt 0:00:41]} 19. Nxd7 {[%emt 0:01:01]} Bxd7 {[%emt 0:00:20]} 20. Bxa7 {[%emt 0:00:14]} Ra8 {[%emt 0:00:08]} 21. Bc5+ {[%emt 0:00:05]} Kf7 {[%emt 0:00:14]} 22. a3 {[%emt 0:00:43]} Rc8 {[%emt 0:01:02]} 23. Bb4 {[%emt 0:01:09]} Bc6 {[%emt 0:00:53]} 24. Re1 {[%emt 0:01:55]} Kg6 {[%emt 0:00:37]} 25. g3 {[%emt 0:01:30]} e5 {[%emt 0:00:22]} 26. Rf1 {[%emt 0:00:53]} Rd8 {[%emt 0:00:41]} 27. Ke3 {[%emt 0:01:00]} Bd7 {[%emt 0:00:34]} 28. Bd2 {[%emt 0:01:01]} Be6 {[%emt 0:02:07]} 29. a4 {[%emt 0:02:40]} Ra8 {[%emt 0:00:22]} 30. a5 {[%emt 0:00:36]} Kf7 {[%emt 0:00:26]} 31. b4 {[%emt 0:00:33]} Ke7 {[%emt 0:00:11]} 32. c4 {[%emt 0:00:50]} Kd7 {[%emt 0:00:12]} 33. b5 {[%emt 0:00:37]} Kc7 {[%emt 0:00:25]} 34. c5 {[%emt 0:00:57]} Bd7 {[%emt 0:00:33]} 35. Rc1 {[%emt 0:01:07]} Be8 {[%emt 0:00:30]} 36. Rb1 {[%emt 0:00:51]} h6 {[%emt 0:00:46]} 37. Bb4 {[%emt 0:00:52]} Bd7 {[%emt 0:00:53]} 38. Bc4 {[%emt 0:00:48]} Be8 {[%emt 0:00:37]} 39. Rd1 {[%emt 0:00:32]} Bd7 {[%emt 0:00:42]} 40. Rd6 {[%emt 0:00:43]} 1-0

[Event "GER-ch Youth U10 2020"]
[Site "Willingen"]
[Date "2020.10.28"]
[Round "2.16"]
[White "Rodriguez Klasen, Ennio"]
[Black "Hellenbroich, Hanno"]
[Result "1-0"]
[ECO "B21"]
[WhiteElo "1297"]
[BlackElo "1291"]
[Annotator "NA RC"]
[PlyCount "95"]
[EventDate "2020.10.27"]
[EventType "swiss"]
[EventRounds "7"]
[EventCountry "GER"]
[SourceTitle "playchess.com"]
[Source "ChessBase"]
[SourceQuality "1"]
[TimeControl "40/4500+30:900+30"]

1. e4 {[%emt 0:00:00]} c5 {[%emt 0:00:01]} 2. f4 {[%emt 0:00:06]} d6 {[%emt 0:01:31]} 3. Nf3 {[%emt 0:01:07]} Nc6 {[%emt 0:00:44]} 4. c3 {[%emt 0:01:09]} g6 {[%emt 0:00:51]} 5. d4 {[%emt 0:02:01]} Bg7 {[%emt 0:01:15]} 6. Be3 {[%emt 0:00:18]} Nf6 {[%emt 0:00:45]} 7. d5 {[%emt 0:01:43]} Nb8 {[%emt 0:01:09]} 8. Bd3 {[%emt 0:01:25]} O-O {[%emt 0:01:47]} 9. O-O {[%emt 0:00:09]} Qb6 {[%emt 0:00:26]} 10. b4 {[%emt 0:01:25]} Ng4 {[%emt 0:00:58]} 11. Qe2 {[%emt 0:01:39]} Nxe3 12. Qxe3 {[%emt 0:01:03]} cxb4 {[%emt 0:03:17]} 13. Qxb6 {[%emt 0:02:03]} axb6 {[%emt 0:02:30]} 14. e5 {[%emt 0:01:43]} dxe5 {[%emt 0:00:34]} 15. fxe5 {[%emt 0:00:35]} Rd8 {[%emt 0:01:11]} 16. c4 {[%emt 0:01:10]} e6 {[%emt 0:00:27]} 17. Rd1 {[%emt 0:11:08]} b3 {[%emt 0:01:35]} 18. Nc3 {[%emt 0:02:39]} bxa2 {[%emt 0:00:17]} 19. Rxa2 {[%emt 0:00:22]} Rxa2 {[%emt 0:00:09]} 20. Nxa2 {[%emt 0:00:20]} Na6 {[%emt 0:00:10]} 21. d6 {[%emt 0:03:05]} Bd7 {[%emt 0:02:58]} 22. Nc3 {[%emt 0:04:50]} Nc5 {[%emt 0:01:04]} 23. Ne4 {[%emt 0:02:23]} Nxd3 {[%emt 0:00:36]} 24. Rxd3 {[%emt 0:00:13]} Bc6 {[%emt 0:00:09]} 25. Rd4 {[%emt 0:02:47]} Bh6 {[%emt 0:00:50]} 26. Nf6+ {[%emt 0:01:49]} Kh8 {[%emt 0:01:08]} 27. Kf2 {[%emt 0:01:52]} Bg7 {[%emt 0:02:26]} 28. Ng5 {[%emt 0:03:17]} Bxf6 {[%emt 0:02:25]} 29. Nxf7+ {[%emt 0:00:28]} Kg7 {[%emt 0:00:13]} 30. Nxd8 {[%emt 0:00:15]} Bxd8 31. g3 {[%emt 0:01:58]} b5 {[%emt 0:04:00]} 32. Ke1 {[%emt 0:02:47]} Ba5+ {[%emt 0:00:51]} 33. Kd1 {[%emt 0:01:28]} Bc3 {[%emt 0:00:22]} 34. d7 {[%emt 0:01:37]} Bxd7 {[%emt 0:02:01]} 35. Rxd7+ {[%emt 0:00:26]} Kh6 {[%emt 0:00:07]} 36. cxb5 {[%emt 0:00:20]} Bxe5 {[%emt 0:00:20]} 37. Rxb7 {[%emt 0:00:13]} Bd4 {[%emt 0:00:54]} 38. b6 {[%emt 0:00:52]} Bg1 {[%emt 0:00:22]} 39. h3 {[%emt 0:00:13]} Bh2 {[%emt 0:00:20]} 40. g4 {[%emt 0:00:08]} Bg1 41. h4 {[%emt 0:15:52]} g5 {[%emt 0:16:05]} 42. h5 {[%emt 0:00:20]} e5 {[%emt 0:00:18]} 43. Re7 {[%emt 0:01:11]} Bd4 {[%emt 0:00:42]} 44. b7 {[%emt 0:00:18]} Ba7 {[%emt 0:00:24]} 45. Re8 {[%emt 0:00:06]} Kg7 {[%emt 0:00:22]} 46. b8=Q {[%emt 0:00:13]} Bxb8 {[%emt 0:00:30]} 47. Rxb8 {[%emt 0:00:30]} Kf6 {[%emt 0:00:30]} 48. Rb6+ {[%emt 0:00:30]} 1-0

[Event "GER-ch Youth U10 2020"]
[Site "Willingen"]
[Date "2020.10.28"]
[Round "2.17"]
[White "Bock, Leonas"]
[Black "Malinowsky, Levi"]
[Result "0-1"]
[ECO "C00"]
[WhiteElo "1301"]
[BlackElo "1606"]
[Annotator "NA RC"]
[PlyCount "110"]
[EventDate "2020.10.27"]
[EventType "swiss"]
[EventRounds "7"]
[EventCountry "GER"]
[SourceTitle "playchess.com"]
[Source "ChessBase"]
[SourceQuality "1"]
[TimeControl "40/4500+30:900+30"]

1. e4 {[%emt 0:00:00]} e6 {[%emt 0:00:00]} 2. Nf3 {[%emt 0:00:08]} d5 {[%emt 0:00:12]} 3. exd5 {[%emt 0:03:18]} exd5 {[%emt 0:00:26]} 4. d4 {[%emt 0:00:57]} Bd6 {[%emt 0:01:10]} 5. Nc3 {[%emt 0:00:40]} c6 {[%emt 0:00:37]} 6. Bd3 {[%emt 0:00:34]} Nf6 {[%emt 0:01:07]} 7. Be3 {[%emt 0:02:03]} Bg4 {[%emt 0:01:42]} 8. h3 {[%emt 0:01:55]} Bh5 {[%emt 0:01:19]} 9. Be2 {[%emt 0:02:48]} Nbd7 {[%emt 0:02:40]} 10. Bg5 {[%emt 0:03:51]} h6 {[%emt 0:03:56]} 11. Bh4 {[%emt 0:01:47]} Bxf3 {[%emt 0:03:35]} 12. Bxf3 {[%emt 0:00:42]} Qc7 {[%emt 0:01:24]} 13. Qe2+ {[%emt 0:02:38]} Kf8 {[%emt 0:04:22]} 14. Qd2 {[%emt 0:04:43]} Re8+ {[%emt 0:01:46]} 15. Kf1 {[%emt 0:00:39]} g5 {[%emt 0:03:01]} 16. Bxg5 {[%emt 0:02:05]} hxg5 {[%emt 0:00:17]} 17. Qxg5 {[%emt 0:00:11]} Bf4 {[%emt 0:01:10]} 18. Qf5 {[%emt 0:00:40]} Bh6 {[%emt 0:03:27]} 19. Re1 {[%emt 0:04:13]} Rxe1+ {[%emt 0:00:17]} 20. Kxe1 {[%emt 0:00:08]} Kg7 {[%emt 0:00:29]} 21. g4 {[%emt 0:01:39]} Re8+ {[%emt 0:00:11]} 22. Kd1 {[%emt 0:03:40]} Qf4 {[%emt 0:00:26]} 23. Qxf4 {[%emt 0:00:46]} Bxf4 {[%emt 0:00:09]} 24. h4 {[%emt 0:01:27]} Ne4 {[%emt 0:01:10]} 25. Nxe4 {[%emt 0:01:04]} dxe4 {[%emt 0:00:06]} 26. Be2 {[%emt 0:01:07]} e3 {[%emt 0:00:41]} 27. f3 {[%emt 0:01:39]} Nb6 {[%emt 0:03:10]} 28. c3 {[%emt 0:05:30]} Bg3 {[%emt 0:00:47]} 29. g5 {[%emt 0:02:33]} Rh8 {[%emt 0:00:29]} 30. h5 {[%emt 0:00:17]} Bf4 {[%emt 0:00:15]} 31. h6+ {[%emt 0:01:00]} Kg6 {[%emt 0:00:54]} 32. Bd3+ {[%emt 0:00:28]} Kxg5 {[%emt 0:00:46]} 33. h7 {[%emt 0:00:29]} Nd5 {[%emt 0:01:09]} 34. Rg1+ {[%emt 0:00:12]} Kh6 {[%emt 0:01:01]} 35. Rg8 {[%emt 0:00:06]} Rxh7 {[%emt 0:00:06]} 36. Bxh7 {[%emt 0:00:15]} Kxh7 {[%emt 0:00:05]} 37. Re8 {[%emt 0:01:29]} Kg6 {[%emt 0:01:02]} 38. Rg8+ {[%emt 0:00:35]} Kf6 {[%emt 0:00:28]} 39. Rg2 {[%emt 0:01:24]} Ke6 {[%emt 0:01:01]} 40. a3 {[%emt 0:02:09]} Nb6 {[%emt 0:01:16]} 41. b3 {[%emt 0:16:25]} a5 {[%emt 0:17:36]} 42. Kc2 {[%emt 0:01:59]} a4 {[%emt 0:01:41]} 43. c4 {[%emt 0:01:46]} axb3+ {[%emt 0:01:14]} 44. Kxb3 {[%emt 0:00:09]} Nc8 {[%emt 0:02:02]} 45. Kc3 {[%emt 0:01:25]} Nd6 {[%emt 0:05:46]} 46. Kd3 {[%emt 0:03:37]} f5 {[%emt 0:01:18]} 47. a4 {[%emt 0:00:52]} Nf7 {[%emt 0:04:20]} 48. Rg6+ {[%emt 0:01:04]} Ke7 {[%emt 0:00:35]} 49. a5 {[%emt 0:00:39]} c5 {[%emt 0:01:48]} 50. a6 {[%emt 0:03:37]} bxa6 {[%emt 0:02:29]} 51. Rxa6 {[%emt 0:00:14]} cxd4 {[%emt 0:00:21]} 52. Ra7+ {[%emt 0:00:47]} Kf6 {[%emt 0:00:33]} 53. Ra6+ {[%emt 0:00:39]} Kg5 {[%emt 0:00:17]} 54. Kxd4 {[%emt 0:01:10]} e2 {[%emt 0:00:09]} 55. Re6 Be5+ {[%emt 0:00:08]} 0-1

[Event "GER-ch Youth U10 2020"]
[Site "Willingen"]
[Date "2020.10.28"]
[Round "2.18"]
[White "Middendorf, Sven-Jonas"]
[Black "Deiringer, Julius"]
[Result "1-0"]
[ECO "C96"]
[WhiteElo "1355"]
[BlackElo "1332"]
[Annotator "NA RC"]
[PlyCount "47"]
[EventDate "2020.10.27"]
[EventType "swiss"]
[EventRounds "7"]
[EventCountry "GER"]
[SourceTitle "playchess.com"]
[Source "ChessBase"]
[SourceQuality "1"]
[TimeControl "40/4500+30:900+30"]

1. e4 {[%emt 0:00:00]} e5 {[%emt 0:00:00]} 2. Nf3 {[%emt 0:00:00]} Nc6 {[%emt 0:00:00]} 3. Bb5 {[%emt 0:00:00]} a6 {[%emt 0:00:00]} 4. Ba4 {[%emt 0:00:00]} Nf6 {[%emt 0:00:05]} 5. O-O {[%emt 0:00:02]} Be7 {[%emt 0:00:08]} 6. Re1 {[%emt 0:00:03]} b5 {[%emt 0:00:11]} 7. Bb3 {[%emt 0:00:10]} O-O {[%emt 0:00:15]} 8. c3 {[%emt 0:00:21]} d6 {[%emt 0:00:53]} 9. h3 {[%emt 0:00:14]} Na5 {[%emt 0:00:58]} 10. Bc2 {[%emt 0:01:29]} Nb7 {[%emt 0:02:15]} 11. d4 {[%emt 0:00:23]} Nd7 {[%emt 0:01:02]} 12. a4 {[%emt 0:03:33]} c6 {[%emt 0:02:27]} 13. axb5 {[%emt 0:03:59]} cxb5 {[%emt 0:00:20]} 14. Nbd2 {[%emt 0:04:31]} Bf6 {[%emt 0:05:30]} 15. Nf1 {[%emt 0:02:14]} Qe7 {[%emt 0:11:53]} 16. Ne3 {[%emt 0:02:18]} Nb6 {[%emt 0:07:11]} 17. Bb3 {[%emt 0:13:53]} Be6 {[%emt 0:05:40]} 18. Bxe6 {[%emt 0:05:24]} Qxe6 {[%emt 0:01:21]} 19. Nf5 {[%emt 0:00:51]} a5 {[%emt 0:06:34]} 20. Bg5 {[%emt 0:05:58]} Nd7 {[%emt 0:06:36]} 21. d5 {[%emt 0:05:55]} Qe8 {[%emt 0:00:59]} 22. Qd2 {[%emt 0:04:43]} Nbc5 {[%emt 0:01:07]} 23. Qe3 {[%emt 0:03:57]} Bd8 {[%emt 0:05:13]} 24. Nxd6 {[%emt 0:01:30]} 1-0

[Event "GER-ch Youth U10 2020"]
[Site "Willingen"]
[Date "2020.10.28"]
[Round "2.19"]
[White "Kamleiter, Noah"]
[Black "Aweh, Mads"]
[Result "0-1"]
[ECO "B47"]
[WhiteElo "1573"]
[BlackElo "1328"]
[Annotator "NA RC"]
[PlyCount "64"]
[EventDate "2020.10.27"]
[EventType "swiss"]
[EventRounds "7"]
[EventCountry "GER"]
[SourceTitle "playchess.com"]
[Source "ChessBase"]
[SourceQuality "1"]
[TimeControl "40/4500+30:900+30"]

1. e4 {[%emt 0:00:00]} c5 {[%emt 0:00:00]} 2. Nf3 {[%emt 0:00:02]} e6 {[%emt 0:00:11]} 3. d4 {[%emt 0:00:39]} cxd4 {[%emt 0:00:13]} 4. Nxd4 {[%emt 0:00:09]} Nc6 {[%emt 0:00:19]} 5. Nc3 {[%emt 0:01:02]} Qc7 {[%emt 0:00:47]} 6. Ndb5 {[%emt 0:01:08]} Qb8 {[%emt 0:00:23]} 7. Bc4 {[%emt 0:01:47]} a6 {[%emt 0:00:58]} 8. Nd4 {[%emt 0:00:55]} Nf6 {[%emt 0:01:46]} 9. O-O {[%emt 0:04:24]} Be7 {[%emt 0:00:27]} 10. Re1 {[%emt 0:01:07]} O-O {[%emt 0:02:43]} 11. Nxc6 {[%emt 0:04:01]} bxc6 {[%emt 0:01:16]} 12. e5 {[%emt 0:02:35]} Ne8 {[%emt 0:01:04]} 13. Qg4 {[%emt 0:06:45]} g6 {[%emt 0:01:40]} 14. Bh6 {[%emt 0:03:03]} Ng7 {[%emt 0:00:53]} 15. Bb3 {[%emt 0:02:13]} Rd8 {[%emt 0:02:58]} 16. Bg5 {[%emt 0:02:03]} Bxg5 {[%emt 0:01:06]} 17. Qxg5 {[%emt 0:00:10]} Bb7 {[%emt 0:00:32]} 18. Ne4 {[%emt 0:02:25]} Nf5 {[%emt 0:01:48]} 19. Nf6+ {[%emt 0:01:01]} Kg7 {[%emt 0:01:19]} 20. Rad1 {[%emt 0:02:58]} h6 {[%emt 0:01:36]} 21. Qg4 {[%emt 0:03:00]} d5 {[%emt 0:01:51]} 22. h4 {[%emt 0:10:57]} Qc7 {[%emt 0:03:41]} 23. h5 {[%emt 0:03:07]} g5 {[%emt 0:05:59]} 24. Kh1 {[%emt 0:05:32]} Qb6 {[%emt 0:01:49]} 25. Rd2 {[%emt 0:08:20]} c5 {[%emt 0:04:22]} 26. Bxd5 {[%emt 0:03:09]} Bxd5 {[%emt 0:03:45]} 27. Nxd5 {[%emt 0:00:10]} Qxb2 {[%emt 0:03:34]} 28. f4 {[%emt 0:01:27]} Qxa2 {[%emt 0:02:08]} 29. fxg5 {[%emt 0:02:13]} Rxd5 {[%emt 0:00:55]} 30. gxh6+ {[%emt 0:00:52]} Kh7 {[%emt 0:04:49]} 31. Rxd5 {[%emt 0:02:03]} Qxd5 {[%emt 0:00:49]} 32. Rd1 {[%emt 0:00:01]} Qxe5 {[%emt 0:02:59]} 0-1